bitfinex/quotes_BTCUSD_20260308
["timestamp","ask_amount","ask_price","bid_price","bid_amount"]
[1773005046746,0.15012452,66931.0,66910.0,0.14640261]
[1773005046899,0.15012452,66931.0,66913.0,0.03912461]
[1773005046900,0.13580408,66930.0,66913.0,0.03912461]
[1773005047102,0.00022001,66922.0,66913.0,0.03912461]
[1773005047307,0.00152,66921.0,66913.0,0.03912461]
[1773005048015,0.00022001,66922.0,66914.0,0.11384738]
[1773005048211,0.00152,66920.0,66914.0,0.11384738]
[1773005048751,0.00022001,66922.0,66914.0,0.11384738]
[1773005048752,0.00152,66919.0,66915.0,0.04073553]
[1773005049115,0.00152,66918.0,66915.0,0.04133673]
[1773005050143,0.00152,66918.0,66916.0,0.07472054]
[1773005050565,0.00022001,66922.0,66916.0,0.07472054]
[1773005050901,0.00152,66921.0,66916.0,0.11545607]
[1773005051104,0.00022001,66922.0,66916.0,0.11605727]
[1773005051306,0.00152,66920.0,66916.0,0.11605727]
[1773005051827,0.00152,66919.0,66916.0,0.11605727]
[1773005052189,0.00152,66918.0,66916.0,0.11605727]
[1773005052599,0.00022001,66922.0,66916.0,0.11605727]
[1773005052913,0.00022001,66922.0,66917.0,0.04073553]
[1773005053121,0.00022001,66922.0,66917.0,0.04133673]
[1773005053341,0.00152,66921.0,66917.0,0.04133673]
[1773005054020,0.00022001,66918.0,66917.0,0.04133673]
[1773005054175,0.00152,66919.0,66918.0,0.07471831]
[1773005055174,0.00152,66919.0,66918.0,0.07531951]
[1773005057343,0.00022001,66925.0,66918.0,0.11605504]
[1773005057542,0.07470823,66928.0,66918.0,0.07531951]
[1773005057744,0.00152,66927.0,66918.0,0.07531951]
[1773005057891,0.00152,66926.0,66919.0,0.04073553]
[1773005059142,0.00136697,66926.0,66919.0,0.04073553]
[1773005059305,0.00136697,66926.0,66920.0,0.07471607]
[1773005059699,0.00152,66925.0,66920.0,0.07471607]
[1773005059903,0.00152,66925.0,66920.0,0.1154516]
[1773005060250,0.00152,66924.0,66920.0,0.1158947]
[1773005060761,0.00152,66923.0,66920.0,0.1158947]
[1773005061070,0.07468912,66945.0,66920.0,0.07515917]
[1773005061218,0.00152,66937.0,66923.0,0.07471272]
[1773005061414,0.04072483,66935.0,66923.0,0.07471272]
[1773005061981,0.04072483,66935.0,66923.0,0.11544825]
[1773005062382,0.00022001,66933.0,66923.0,0.11589135]
[1773005062535,0.00022001,66933.0,66924.0,0.04073553]
[1773005062732,0.00015,66938.0,66925.0,0.04073553]
[1773005062964,1e-08,66948.0,66927.0,0.04073553]
[1773005063161,1e-08,66950.0,66928.0,0.04073553]
[1773005063360,0.00152,66949.0,66931.0,0.07470379]
[1773005063567,0.00152,66949.0,66932.0,0.00152]
[1773005063729,0.00152,66956.0,66932.0,0.00152]
[1773005063932,0.00152,66956.0,66935.0,0.14640261]
[1773005064188,0.00191688,66956.0,66938.0,0.04073553]
[1773005064493,0.00191688,66956.0,66943.0,0.14640261]
[1773005064687,0.00191688,66956.0,66945.0,0.14640261]
[1773005064892,0.00039688,66956.0,66946.0,0.04073553]
[1773005065292,0.15012452,66962.0,66946.0,0.04073553]
[1773005065293,0.07466198,66969.0,66947.0,0.04073553]
[1773005065439,0.04072483,66966.0,66948.0,0.11542036]
[1773005065641,0.15012452,66964.0,66948.0,0.11542036]
[1773005065852,0.10719048,66968.0,66948.0,0.11542036]
[1773005065853,0.04072483,66961.0,66948.0,0.07468483]
[1773005066186,0.04072483,66959.0,66948.0,0.05451179]
[1773005066381,0.00152,66958.0,66948.0,0.05451179]
[1773005066583,0.00152,66957.0,66948.0,0.09524732]
[1773005068283,0.00152,66957.0,66949.0,0.04073553]
[1773005069102,0.00022001,66956.0,66949.0,0.04073553]
[1773005069527,0.00022001,66956.0,66950.0,0.07468259]
[1773005072752,0.02712756,66968.0,66950.0,0.07468259]
[1773005072948,0.02712756,66968.0,66953.0,0.14119964]
[1773005073101,0.02712756,66968.0,66956.0,0.04073553]
[1773005073310,0.00696868,66968.0,66957.0,0.04073553]
[1773005073545,0.00696868,66968.0,66958.0,0.04073553]
[1773005073724,0.00696868,66968.0,66960.0,0.04073553]
[1773005074324,0.00696868,66968.0,66960.0,0.04058553]
[1773005075387,0.00376999,66979.0,66962.0,0.04073553]
[1773005075541,0.07848572,66979.0,66963.0,0.04073553]
[1773005075737,0.07696572,66979.0,66965.0,0.04073553]
[1773005075949,0.00152,66978.0,66966.0,0.04073553]
[1773005076152,0.00152,66977.0,66967.0,0.04073553]
[1773005076649,0.00152,66977.0,66969.0,0.04073553]
[1773005077402,0.00152,66977.0,66964.0,0.07466698]
[1773005077602,0.00152,66977.0,66965.0,0.04073553]
[1773005077937,0.00022001,66974.0,66966.0,0.11540028]
[1773005078138,0.00152,66977.0,66968.0,0.04073553]
[1773005079219,0.00231514,66979.0,66968.0,0.04073553]
[1773005080417,0.00231514,66979.0,66970.0,0.03795629]
[1773005080639,0.03958606,66989.0,66970.0,0.03795629]
[1773005080879,0.0761575,66991.0,66974.0,0.03795629]
[1773005081047,0.0761575,66991.0,66976.0,0.03795629]
[1773005081667,0.07502499,66992.0,66976.0,0.14119964]
[1773005081900,0.0003881,66992.0,66977.0,0.03795629]
[1773005082457,0.07502417,66992.0,66977.0,0.03795629]
[1773005082665,0.0801794,66998.0,66978.0,0.07465137]
[1773005082864,0.0801794,66998.0,66979.0,0.00152]
[1773005082865,0.04007606,66995.0,66979.0,0.00152]
[1773005083090,0.04007606,66992.0,66979.0,0.00152]
[1773005083292,0.00152,66994.0,66979.0,0.03795629]
[1773005083503,0.04007606,66993.0,66979.0,0.03795629]
[1773005084196,0.0801794,66998.0,66980.0,0.14119964]
[1773005084403,0.04159606,66996.0,66981.0,0.03795629]
[1773005084576,0.04007606,66993.0,66970.0,0.03802144]
[1773005084778,0.00022001,66986.0,66972.0,0.03795629]
[1773005084996,0.00022001,66986.0,66972.0,0.14119964]
[1773005085209,0.00022001,66986.0,66975.0,0.03795629]
[1773005085813,0.00022001,66986.0,66975.0,0.14119964]
[1773005086043,0.00022001,66986.0,66976.0,0.03795629]
[1773005090516,0.04007606,66985.0,66970.0,0.07472433]
[1773005090720,0.04007606,66985.0,66972.0,0.07465806]
[1773005092398,0.04007606,66982.0,66972.0,0.0002]
[1773005092599,0.04159606,66982.0,66972.0,0.0002]
[1773005094635,0.11624299,66982.0,66972.0,0.0002]
[1773005095422,0.07616693,66982.0,66972.0,0.0002]
[1773005096830,0.07616693,66982.0,66968.0,0.07641141]
[1773005096831,0.04007606,66979.0,66968.0,0.0748923]
[1773005097178,0.04007606,66977.0,66968.0,0.0748923]
[1773005097360,0.07616693,66982.0,66968.0,0.0748923]
[1773005097714,0.07616693,66982.0,66969.0,0.03795629]
[1773005097953,0.00152,66981.0,66971.0,0.03795629]
[1773005098669,0.00152,66980.0,66971.0,0.03795629]
[1773005099036,0.07616868,66981.0,66973.0,0.03795629]
[1773005099240,0.35534986,67008.0,66973.0,0.03795629]
[1773005099241,0.07486355,66986.0,66973.0,0.03795629]
[1773005100260,0.00152,66985.0,66973.0,0.03795629]
[1773005101234,0.07464469,66984.0,66974.0,0.07465583]
[1773005103845,0.07464469,66984.0,66973.0,0.07465583]
[1773005104049,0.07464469,66984.0,66973.0,0.11261212]
[1773005104772,0.07464469,66984.0,66973.0,0.07465583]
[1773005105133,0.07464469,66984.0,66971.0,0.0002]
[1773005105337,0.14992171,66982.0,66971.0,0.07465894]
[1773005105539,0.04007606,66981.0,66971.0,0.07465894]
[1773005106378,0.11525804,66980.0,66970.0,0.07465975]
[1773005106525,0.00152,66979.0,66970.0,0.07465975]
[1773005107733,0.07464914,66981.0,66969.0,0.07466141]
[1773005107734,0.0421289,66978.0,66969.0,0.07466141]
[1773005107934,0.0420889,66978.0,66969.0,0.07466141]
[1773005110071,0.1167413,66978.0,66971.0,0.0002]
[1773005110988,0.0761724,66978.0,66971.0,0.0002]
[1773005111180,0.0761724,66978.0,66964.0,0.07486625]
[1773005111181,0.14805478,66974.0,66964.0,0.07486625]
[1773005111485,0.03805244,66973.0,66965.0,0.07466587]
[1773005112186,0.03805244,66971.0,66950.0,0.07488221]
[1773005112444,0.03805244,66959.0,66947.0,0.07468501]
[1773005112575,0.03805244,66959.0,66944.0,0.00581]
[1773005112576,0.00152,66958.0,66944.0,0.00581]
[1773005112780,0.00152,66958.0,66943.0,0.07489029]
[1773005112979,0.03805244,66956.0,66943.0,0.0002]
[1773005113179,0.00152,66958.0,66943.0,0.0002]
[1773005113180,0.14805478,66953.0,66943.0,0.0002]
[1773005113381,0.03805244,66951.0,66943.0,0.0002]
[1773005114222,0.07468259,66950.0,66943.0,0.0002]
[1773005114422,0.03805244,66949.0,66939.0,0.07469455]
[1773005114624,0.03805244,66949.0,66939.0,0.00152]
[1773005116879,0.03805244,66946.0,66937.0,0.0001894]
[1773005117116,0.03805244,66946.0,66936.0,0.07641817]
[1773005117117,0.03805244,66945.0,66936.0,0.07641817]
[1773005117631,0.03790244,66945.0,66936.0,0.07641817]
[1773005117781,0.03790244,66945.0,66936.0,0.0002]
[1773005117986,0.03790244,66945.0,66943.0,0.0002]
[1773005119704,0.07468929,66944.0,66943.0,0.0002]
[1773005126370,0.11274173,66944.0,66943.0,0.0002]
[1773005127004,0.07468929,66944.0,66943.0,0.0002]
[1773005127200,0.07568929,66944.0,66943.0,0.0002]
[1773005127715,0.07468929,66944.0,66943.0,0.0002]
[1773005127925,0.07568929,66944.0,66943.0,0.0002]
[1773005128677,0.07568929,66944.0,66943.0,0.00016]
[1773005128904,0.07468259,66950.0,66943.0,0.00016]
[1773005129121,0.11273636,66949.0,66943.0,0.00016]
[1773005130417,0.074674,66958.0,66943.0,0.00016]
[1773005130632,0.07467702,66955.0,66943.0,0.0748504]
[1773005131036,0.07619702,66955.0,66943.0,0.0748504]
[1773005131441,0.00022001,66952.0,66943.0,0.0748504]
[1773005132263,0.00022001,66952.0,66943.0,0.11374712]
[1773005134856,0.0642103,66956.0,66943.0,0.11374712]
[1773005135061,0.07467702,66955.0,66943.0,0.11374712]
[1773005136571,0.07467702,66955.0,66943.0,0.0748504]
[1773005136768,0.07467702,66955.0,66944.0,0.03889672]
[1773005137508,0.14440677,66954.0,66940.0,0.00152]
[1773005137709,0.0626903,66956.0,66942.0,0.14819447]
[1773005137907,0.07467688,66957.0,66943.0,0.03889672]
[1773005138106,0.07467688,66957.0,66944.0,0.03889672]
[1773005139382,0.07653247,66959.0,66946.0,0.04069672]
[1773005139597,0.07653247,66959.0,66948.0,0.04069672]
[1773005139788,0.07501247,66959.0,66948.0,0.04069672]
[1773005139970,0.00022001,66956.0,66948.0,0.04069672]
[1773005141412,0.00022001,66956.0,66949.0,0.07468371]
[1773005141674,0.00022001,66956.0,66949.0,0.11538043]
[1773005142532,0.0748961,66956.0,66950.0,0.04069672]
[1773005142735,0.00022001,66956.0,66950.0,0.04069672]
[1773005143545,0.00022001,66956.0,66952.0,0.04069672]
[1773005143905,0.07467589,66958.0,66952.0,0.04069672]
[1773005144572,0.0001894,66963.0,66952.0,0.04069672]
[1773005144698,0.0001894,66963.0,66954.0,0.04069672]
[1773005144897,0.07466632,66965.0,66954.0,0.04069672]
[1773005145101,0.0003524,66964.0,66954.0,0.04069672]
[1773005145738,0.07466438,66967.0,66956.0,0.04069672]
[1773005146345,0.07618438,66967.0,66956.0,0.04069672]
[1773005146551,0.05466438,66967.0,66956.0,0.04069672]
[1773005146746,0.05618438,66967.0,66956.0,0.04069672]
[1773005148245,0.21906443,66973.0,66956.0,0.04069672]
[1773005148246,0.0001846,66974.0,66959.0,0.04069672]
[1773005148456,0.0001846,66974.0,66961.0,0.04069672]
[1773005148656,0.0001846,66974.0,66964.0,0.14819447]
[1773005148861,0.07616698,66982.0,66965.0,0.04069672]
[1773005149064,0.07616698,66982.0,66967.0,0.04069672]
[1773005149680,0.00152,66981.0,66967.0,0.04069672]
[1773005149855,0.20920083,66982.0,66966.0,0.00152]
[1773005149856,0.20920083,66982.0,66969.0,0.14819447]
[1773005150056,0.00040461,66984.0,66970.0,0.04069672]
[1773005150267,0.20920083,66983.0,66971.0,0.07465918]
[1773005150585,0.20920083,66983.0,66972.0,0.04221672]
[1773005152756,0.20920083,66983.0,66973.0,0.07465695]
[1773005153991,0.20931973,66983.0,66973.0,0.07465695]
[1773005154769,0.28396561,66983.0,66973.0,0.07465695]
[1773005156163,0.14440677,66982.0,66968.0,0.07466234]
[1773005156369,0.14440677,66980.0,66970.0,0.07465806]
[1773005156772,0.28396561,66983.0,66970.0,0.07465806]
[1773005156994,0.28396561,66983.0,66971.0,0.04221672]
[1773005158499,0.14440677,66980.0,66968.0,0.07466144]
[1773005158702,0.01878111,66976.0,66959.0,0.00152]
[1773005158902,0.14440677,66967.0,66953.0,0.07467925]
[1773005159204,0.01878111,66968.0,66953.0,0.07467925]
[1773005159205,0.00152,66968.0,66955.0,0.04221672]
[1773005159399,0.20920083,66967.0,66955.0,0.04221672]
[1773005160300,0.20920083,66967.0,66955.0,0.04069672]
[1773005160500,0.20920083,66967.0,66956.0,0.00152]
[1773005160501,0.14440677,66966.0,66956.0,0.00152]
[1773005160745,0.14440677,66966.0,66956.0,0.0002]
[1773005160884,0.07466587,66965.0,66956.0,0.0002]
[1773005165238,0.07466548,66966.0,66956.0,0.0748759]
[1773005166857,0.22551458,66966.0,66956.0,0.0748759]
[1773005168253,0.00152,66968.0,66957.0,0.03831273]
[1773005168445,0.07618269,66968.0,66958.0,0.03831273]
[1773005169644,0.07618269,66968.0,66959.0,0.07467256]
[1773005169919,0.07618269,66968.0,66960.0,0.04201792]
[1773005170673,0.07618269,66968.0,66957.0,0.07619384]
[1773005171005,0.1508491,66967.0,66958.0,0.07467363]
[1773005171577,0.07466475,66966.0,66958.0,0.07467363]
[1773005176968,0.00152,66967.0,66958.0,0.07467363]
[1773005177147,0.07618475,66967.0,66958.0,0.07467363]
[1773005177356,0.00152,66967.0,66959.0,0.04201792]
[1773005177945,0.07466475,66966.0,66960.0,0.07467144]
[1773005178145,0.07618309,66968.0,66960.0,0.07467144]
[1773005179821,0.07618309,66968.0,66955.0,0.04216792]
[1773005179822,0.17021426,66967.0,66955.0,0.07482701]
[1773005180257,0.07466475,66966.0,66955.0,0.00015]
[1773005180435,0.07618475,66966.0,66955.0,0.00015]
[1773005180884,0.00152,66965.0,66955.0,0.00015]
[1773005181219,0.00152,66964.0,66955.0,0.00015]
[1773005181709,0.07466475,66966.0,66955.0,0.00015]
[1773005181924,0.00152,66965.0,66955.0,0.00015]
[1773005182249,0.07466475,66966.0,66955.0,0.00015]
[1773005182451,0.00152,66965.0,66955.0,0.00015]
[1773005183206,0.07466475,66966.0,66955.0,0.00015]
[1773005183410,0.00152,66965.0,66955.0,0.00015]
[1773005183684,0.00152,66966.0,66956.0,0.04201792]
[1773005184386,0.07618492,66966.0,66957.0,0.07467479]
[1773005184653,0.07618492,66966.0,66957.0,0.11669271]
[1773005189207,0.07618492,66966.0,66957.0,0.07467479]
[1773005191134,0.05947418,66970.0,66957.0,0.07467479]
[1773005191135,0.07465948,66971.0,66958.0,0.04201792]
[1773005191486,0.00152,66970.0,66960.0,0.04201792]
[1773005192108,0.07465948,66971.0,66960.0,0.04201792]
[1773005192322,0.00152,66970.0,66960.0,0.04201792]
[1773005192940,0.00152,66972.0,66962.0,0.04201792]
[1773005193260,0.00152,66972.0,66964.0,0.04201792]
[1773005195759,0.00152,66972.0,66965.0,0.07466587]
[1773005197325,0.00022001,66973.0,66966.0,0.04201792]
[1773005197458,0.07487702,66973.0,66966.0,0.04201792]
[1773005198006,0.07487702,66973.0,66967.0,0.07466364]
[1773005200699,0.00022001,66973.0,66968.0,0.03903551]
[1773005200916,0.00022001,66973.0,66967.0,0.07466364]
[1773005201324,0.07487733,66973.0,66965.0,0.07466534]
[1773005201503,0.00022001,66973.0,66965.0,0.07466534]
[1773005201706,0.07487713,66973.0,66960.0,0.07487033]
[1773005202107,0.07487713,66973.0,66961.0,0.07467033]
[1773005204289,0.07487713,66973.0,66961.0,0.02467033]
[1773005204945,0.07487713,66973.0,66961.0,0.06370584]
[1773005206963,0.07487713,66973.0,66961.0,0.03903551]
[1773005207374,0.00152,66972.0,66961.0,0.03903551]
[1773005209581,0.00152,66972.0,66963.0,0.03903551]
[1773005209780,0.07617871,66972.0,66963.0,0.03903551]
[1773005211006,0.00022001,66973.0,66963.0,0.03903551]
[1773005211226,0.00022001,66973.0,66964.0,0.03903551]
[1773005211586,0.00022001,66973.0,66965.0,0.11370138]
[1773005214031,0.00022001,66973.0,66965.0,0.07466587]
[1773005216306,0.00022001,66973.0,66963.0,0.07466587]
[1773005217319,0.00152,66974.0,66963.0,0.11370138]
[1773005218050,0.00174001,66974.0,66964.0,0.03903551]
[1773005218415,0.00174001,66974.0,66965.0,0.07466587]
[1773005218746,0.00174001,66974.0,66966.0,0.03903551]
[1773005220772,0.00174001,66974.0,66967.0,0.07466364]
[1773005222850,0.00174001,66974.0,66964.0,0.03903551]
[1773005223209,0.00152,66978.0,66965.0,0.14979356]
[1773005223414,0.0001189,66983.0,66963.0,0.07466587]
[1773005223539,0.0002004,66986.0,66965.0,0.03903551]
[1773005223746,0.0002004,66986.0,66968.0,0.14979356]
[1773005223941,0.0002004,66986.0,66972.0,0.14979356]
[1773005224168,0.0002004,66986.0,66974.0,0.03903551]
[1773005224393,0.0002004,66986.0,66976.0,0.03903551]
[1773005224706,0.0002004,66986.0,66977.0,0.03903551]
[1773005224913,0.0002004,66986.0,66979.0,0.03903551]
[1773005227535,0.00022001,66981.0,66980.0,0.07464914]
[1773005228733,0.0002004,66986.0,66980.0,0.07464914]
[1773005229335,0.07638626,66992.0,66981.0,0.03837182]
[1773005229336,0.00023,66992.0,66981.0,0.03837182]
[1773005229655,0.00555,66998.0,66982.0,0.00152]
[1773005229858,0.00555,66998.0,66984.0,0.14981263]
[1773005230062,0.00555,66998.0,66987.0,0.03837182]
[1773005230213,0.08017922,66998.0,66987.0,0.03989182]
[1773005230643,0.00555,66998.0,66987.0,0.03989182]
[1773005231046,0.0746302,66997.0,66987.0,0.03989182]
[1773005231377,0.07470118,66997.0,66987.0,0.03989182]
[1773005231966,0.07470118,66997.0,66988.0,0.07464023]
[1773005232374,7.098e-05,66997.0,66988.0,0.07464023]
[1773005232626,7.098e-05,66997.0,66989.0,0.03837182]
[1773005232842,0.00152,67001.0,66991.0,0.03837182]
[1773005233083,0.00152,67001.0,66992.0,0.03837182]
[1773005233513,0.02349259,67000.0,66988.0,0.07464023]
[1773005233742,0.17944196,66999.0,66988.0,7.098e-05]
[1773005233880,0.15594937,66997.0,66973.0,0.03837182]
[1773005234081,0.17944196,66994.0,66984.0,0.07464469]
[1773005234294,0.15594937,66994.0,66984.0,0.07464469]
[1773005234498,0.00152,66995.0,66985.0,0.03837182]
[1773005236455,0.07463354,66994.0,66986.0,0.07464246]
[1773005237286,0.07463354,66994.0,66986.0,0.05464246]
[1773005238990,0.15594937,66993.0,66974.0,0.11302765]
[1773005239191,0.15594937,66991.0,66975.0,0.00152]
[1773005239389,0.17773266,66990.0,66975.0,0.00152]
[1773005239603,0.17773266,66990.0,66975.0,0.03989182]
[1773005241588,0.17773266,66990.0,66976.0,0.11302542]
[1773005241589,0.07463911,66989.0,66976.0,0.11302542]
[1773005241742,0.07463911,66989.0,66982.0,0.0002]
[1773005242784,0.02151568,66987.0,66975.0,0.0748537]
[1773005243036,0.15594937,66984.0,66975.0,0.0748537]
[1773005243932,0.0746415,66987.0,66976.0,0.03837182]
[1773005244134,0.00152,66986.0,66976.0,0.03837182]
[1773005246241,0.07464357,66985.0,66978.0,0.03837182]
[1773005249191,0.07464357,66985.0,66978.0,0.11302233]
[1773005249719,0.23059294,66985.0,66977.0,0.07465249]
[1773005249924,0.07464357,66985.0,66973.0,0.07477581]
[1773005250088,0.1729044,66984.0,66973.0,0.07477581]
[1773005250856,0.07464357,66985.0,66978.0,0.0002]
[1773005251606,0.00152,66986.0,66979.0,0.03837182]
[1773005251847,0.07616028,66988.0,66979.0,0.03837182]
[1773005252556,0.00152,66987.0,66979.0,0.03837182]
[1773005252926,0.07464028,66988.0,66979.0,0.03837182]
[1773005253129,0.07463927,66989.0,66979.0,0.03837182]
[1773005253346,0.07463562,66993.0,66979.0,0.03837182]
[1773005253347,0.00152,66988.0,66980.0,0.07464914]
[1773005253544,0.07463562,66993.0,66980.0,0.07464914]
[1773005253744,0.00152,66992.0,66980.0,0.07464914]
[1773005254043,0.07463562,66993.0,66980.0,0.07464914]
[1773005254569,0.07463562,66993.0,66980.0,0.11302096]
[1773005254753,0.00152,66992.0,66980.0,0.11302096]
[1773005255120,0.00152,66991.0,66980.0,0.11302096]
[1773005255323,0.074638,66990.0,66980.0,0.11302096]
[1773005255726,0.00152,66989.0,66980.0,0.11302096]
[1773005258291,0.07464023,66988.0,66978.0,0.0002]
[1773005258499,0.01635878,66984.0,66973.0,0.07477559]
[1773005258697,0.06083861,66988.0,66973.0,0.07477559]
[1773005258907,0.13963502,66987.0,66973.0,0.07477559]
[1773005259337,0.1401704,66987.0,66973.0,0.07477559]
[1773005259788,0.06083861,66988.0,66980.0,0.0002]
[1773005259926,0.20047363,66988.0,66980.0,0.0002]
[1773005260270,0.07464023,66989.0,66980.0,0.0002]
[1773005260490,0.00152,66987.0,66980.0,0.0002]
[1773005261659,0.00152,66987.0,66974.0,0.04114804]
[1773005263003,0.07464246,66986.0,66975.0,0.07465472]
[1773005263647,0.07464246,66986.0,66975.0,0.11580276]
[1773005264051,0.00152,66985.0,66975.0,0.11580276]
[1773005264255,0.00152,66985.0,66976.0,0.04114804]
[1773005265114,0.07464469,66984.0,66977.0,0.07465249]
[1773005266281,0.07464469,66984.0,66977.0,0.07491869]
[1773005271674,0.07464469,66984.0,66977.0,0.0002662]
[1773005271857,0.07464469,66984.0,66975.0,0.0002]
[1773005272729,0.07464469,66984.0,66975.0,0.07485414]
[1773005274560,0.07464469,66984.0,66975.0,0.0002]
[1773005282382,0.07464469,66984.0,66975.0,3.168e-05]
[1773005282982,0.07464469,66984.0,66974.0,0.07417567]
[1773005286433,0.07464469,66984.0,66974.0,0.07437567]
[1773005286683,0.0748647,66984.0,66974.0,0.07437567]
[1773005286896,0.0748647,66984.0,66974.0,0.07420743]
[1773005287098,0.0748647,66984.0,66974.0,0.07387095]
[1773005290326,0.0748647,66984.0,66974.0,0.0737028]
[1773005298582,0.0748647,66984.0,66971.0,0.00152]
[1773005298749,0.07498349,66984.0,66972.0,0.03745141]
[1773005300715,0.07498349,66984.0,66973.0,0.11214836]
[1773005300716,0.07528949,66984.0,66973.0,0.11214836]
[1773005301537,0.07528949,66984.0,66973.0,0.07465695]
[1773005301838,0.07528949,66984.0,66974.0,0.03749141]
[1773005303604,0.07528949,66984.0,66975.0,0.07465472]
[1773005304219,0.07528949,66984.0,66975.0,0.11214613]
[1773005307086,0.07616469,66984.0,66975.0,0.11214613]
[1773005307857,0.07616469,66984.0,66975.0,0.07465472]
[1773005308027,0.07616469,66984.0,66976.0,0.03749141]
[1773005308869,0.07616469,66984.0,66977.0,0.07465249]
[1773005310880,0.0763847,66984.0,66977.0,0.07465249]
[1773005311381,0.0763847,66984.0,66977.0,0.1121439]
[1773005313530,0.0763847,66984.0,66974.0,0.07485583]
[1773005315700,0.15246034,66980.0,66967.0,0.0748634]
[1773005316074,0.04129224,66979.0,66967.0,0.0748634]
[1773005318248,0.07465137,66978.0,66972.0,0.0002]
[1773005319030,0.07461137,66978.0,66972.0,0.0002]
[1773005319928,0.11443848,66978.0,66972.0,0.0002]
[1773005323165,0.07465137,66978.0,66972.0,0.03824163]
[1773005323395,0.07465137,66978.0,66972.0,0.0002]
[1773005339677,0.07487138,66978.0,66972.0,0.0002]
[1773005341006,0.07487138,66978.0,66967.0,0.0002]
[1773005341211,0.03982711,66976.0,66965.0,0.0002]
[1773005341440,0.07487138,66978.0,66966.0,0.03804163]
[1773005342148,0.03982711,66976.0,66965.0,0.00016]
[1773005343235,0.07465472,66975.0,66965.0,0.00016]
[1773005343435,0.00152,66974.0,66965.0,0.00016]
[1773005348732,0.07465695,66973.0,66965.0,0.00016]
[1773005348931,0.07465695,66973.0,66965.0,0.0366375]
[1773005350963,0.00152,66972.0,66965.0,0.0366375]
[1773005353068,0.07465918,66971.0,66965.0,0.03443814]
[1773005353919,0.07465918,66971.0,66965.0,0.07466569]
[1773005354129,0.07465918,66971.0,66965.0,0.0364775]
[1773005355251,0.07465918,66972.0,66965.0,0.0364775]
[1773005355787,0.07465918,66971.0,66965.0,0.0364775]
[1773005359548,0.07465918,66971.0,66965.0,0.0366775]
[1773005360703,0.07465918,66972.0,66965.0,0.0366775]
[1773005360903,0.07465918,66972.0,66965.0,0.11134305]
[1773005361767,0.07461918,66972.0,66965.0,0.0366775]
[1773005362345,0.07613918,66972.0,66965.0,0.0366775]
[1773005366864,0.07635919,66972.0,66965.0,0.0366775]
[1773005370107,0.15109146,66969.0,66956.0,0.07487558]
[1773005370354,0.00148,66968.0,66956.0,0.07487558]
[1773005370962,0.00148,66968.0,66956.0,0.0002]
[1773005371135,0.05814094,66970.0,66956.0,0.07487565]
[1773005371342,0.00148,66967.0,66956.0,0.11467721]
[1773005372205,0.07466475,66966.0,66957.0,0.07467478]
[1773005380161,0.07466475,66966.0,66957.0,0.11447634]
[1773005381074,0.07466475,66966.0,66957.0,0.07467478]
[1773005381392,0.07466475,66966.0,66936.0,0.11465556]
[1773005381393,0.14440218,66963.0,66936.0,0.11465556]
[1773005381589,0.05946191,66950.0,66936.0,0.11465556]
[1773005381791,0.53515719,66960.0,66931.0,0.03980156]
[1773005381792,0.05946191,66946.0,66931.0,0.03980156]
[1773005381989,0.00148,66945.0,66930.0,0.03980156]
[1773005382191,0.07468929,66944.0,66932.0,0.03980156]
[1773005382603,0.074772,66944.0,66932.0,0.03980156]
[1773005385211,0.074772,66944.0,66931.0,0.07470361]
[1773005385795,0.05946191,66941.0,66930.0,0.11450626]
[1773005386414,0.07469375,66940.0,66930.0,0.11450626]
[1773005386647,0.07621375,66940.0,66930.0,0.03980135]
[1773005387626,0.07621375,66940.0,66926.0,0.11153729]
[1773005388376,0.07621375,66940.0,66927.0,0.03682815]
[1773005388721,0.07621375,66940.0,66931.0,0.0002]
[1773005389180,0.11512047,66940.0,66931.0,0.0002]
[1773005390157,0.05946191,66937.0,66925.0,0.07471049]
[1773005390366,0.03890672,66936.0,66924.0,0.0002]
[1773005390567,0.05946191,66934.0,66924.0,0.0002]
[1773005391123,0.07470156,66933.0,66924.0,0.0002]
[1773005391738,0.00152,66932.0,66924.0,0.0002]
[1773005392172,0.07470156,66933.0,66924.0,0.0002]
[1773005392341,0.00152,66931.0,66924.0,0.0002]
[1773005392962,0.00152,66930.0,66924.0,0.0002]
[1773005393607,0.00152,66929.0,66924.0,0.0002]
[1773005393985,0.00152,66928.0,66924.0,0.0002]
[1773005394396,0.07470156,66933.0,66924.0,0.0002]
[1773005394565,0.00152,66932.0,66924.0,0.0002]
[1773005394995,0.00152,66931.0,66924.0,0.0002]
[1773005395213,0.07469625,66938.0,66924.0,0.0002]
[1773005395342,0.07469223,66942.0,66926.0,0.13769628]
[1773005395540,0.00152,66941.0,66930.0,0.03682815]
[1773005396464,0.05946191,66940.0,66930.0,0.03682815]
[1773005397059,0.00152,66941.0,66930.0,0.03682815]
[1773005398607,0.07469375,66940.0,66931.0,0.07470379]
[1773005399782,0.07469375,66940.0,66932.0,0.03682815]
[1773005399982,0.00152,66940.0,66932.0,0.03682815]
[1773005400188,0.00152,66940.0,66933.0,0.03682815]
[1773005400537,0.00152,66940.0,66934.0,0.03682815]
[1773005401116,0.00152,66940.0,66936.0,0.03682815]
[1773005402122,0.07629226,66944.0,66936.0,0.03682815]
[1773005402521,8.271e-05,66944.0,66936.0,0.03682815]
[1773005402730,0.00152,66949.0,66937.0,0.13697608]
[1773005402922,0.00022001,66947.0,66939.0,0.03682815]
[1773005403149,0.00022001,66947.0,66940.0,0.1115219]
[1773005403346,0.00022001,66947.0,66941.0,0.03682815]
[1773005403691,0.00152,66951.0,66943.0,0.03682815]
[1773005404193,0.00152,66951.0,66940.0,0.07469375]
[1773005404873,0.00152,66951.0,66940.0,0.1115219]
[1773005406710,0.00148,66950.0,66940.0,0.1115219]
[1773005409479,0.00170001,66950.0,66940.0,0.1115219]
[1773005410733,0.00170001,66950.0,66940.0,0.07469375]
[1773005410931,0.03885778,66950.0,66940.0,0.07469375]
[1773005411232,0.07638271,66950.0,66940.0,0.07469375]
[1773005412160,0.0746811,66952.0,66940.0,0.07469375]
[1773005412345,0.07466966,66962.0,66941.0,0.03877282]
[1773005412644,0.00148,66960.0,66945.0,0.03877282]
[1773005412842,0.00148,66960.0,66947.0,0.14183351]
[1773005413148,0.00148,66960.0,66948.0,0.03877282]
[1773005413643,0.00148,66960.0,66950.0,0.03877282]
[1773005415209,0.07489788,66961.0,66950.0,0.03877282]
[1773005415382,0.00148,66959.0,66950.0,0.03877282]
[1773005415586,0.00148,66959.0,66951.0,0.07468148]
[1773005415780,0.00148,66958.0,66952.0,0.14183351]
[1773005415933,0.00148,66958.0,66951.0,0.07468148]
[1773005415934,0.00148,66958.0,66955.0,0.03877282]
[1773005418363,0.00148,66958.0,66952.0,0.03877282]
[1773005420584,0.00022001,66959.0,66953.0,0.07467925]
[1773005420788,0.00148,66957.0,66953.0,0.11345207]